Cogmind - Beta 14 @@@ ROGUE MODE // 2025.03.06 @ 18:43:04 Player: Rudrot Result: Destroyed by G-34 Mercenary with Small Laser Performance ------------- Evolutions (0) 0 Regions Visited (1) 200 Robots Destroyed (19) 95 Value Destroyed (307) 307 Prototype IDs (1) 20 Alien Tech Used (0) 0 Bonus (0) 0 TOTAL SCORE: 622 Bonus ------- None Cogmind --------- Core Integrity 0/250 Matter 300/300 Energy 280/280 System Corruption 3% Temperature Cool (29) Movement Rolling (80) Location -10/Materials Parts ------- > --- POWER (1) -------- Cooled Ion Engine > --- PROPULSION (2) --- Wheel Wheel > --- UTILITY (2) ------ Heat Sink Small Storage Unit > --- WEAPON (2) ------- Small Laser Beam Cannon > --- INVENTORY (8) ---- Cooled Ion Engine Cooled Ion Engine Medium Battery (150) Medium Battery (150) Medium Battery (150) Visual Processing Unit Small Laser Peak State ------------ > --- POWER ------------ Cooled Ion Engine > --- PROPULSION ------- Wheel Wheel > --- UTILITY ---------- Small Storage Unit Medium Battery > --- WEAPON ----------- Small Laser Beam Cannon > --- INVENTORY -------- Light Ion Engine Cooled Ion Engine Heat Sink Medium Battery Medium Battery Visual Processing Unit Small Laser [Rating: 10] Favorites ----------- Power Light Ion Engine Engine Light Ion Engine Propulsion Wheel Wheel Wheel Utility Small Storage Unit Device Heat Sink Storage Small Storage Unit Weapon Beam Cannon Energy Gun Small Laser Energy Cannon Beam Cannon Build | -11 -10 ------- Run | Yrd Mat Slots Evolved . | . . Power . | . . Propulsion . | . . Utility . | . . Weapon . | . . Parts Attached 21 | 6 15 Power 4 | 1 3 Engine 4 | 1 3 Core . | . . Reactor . | . . Propulsion 6 | 2 4 Treads . | . . Leg . | . . Wheel 6 | 2 4 Hover . | . . Flight . | . . Utility 4 | 1 3 Device 1 | . 1 Storage 3 | 1 2 Processor . | . . Hackware . | . . Protection . | . . Artifact . | . . Weapon 7 | 2 5 Energy Gun 4 | 2 2 Energy Cannon 3 | . 3 Ballistic Gun . | . . Ballistic Cannon . | . . Launcher . | . . Special Weapon . | . . Impact Weapon . | . . Slashing Weapon . | . . Piercing Weapon . | . . Special Melee Weapon . | . . Unidentified Prototypes 1 | . 1 Parts Lost 6 | . 6 Power . | . . Propulsion 4 | . 4 Utility . | . . Weapon 2 | . 2 Highest Loss Streak 3 | . 3 To Critical Strikes . | . . Average Slot Usage (%) 91 | . 91 Engine 13 | . 13 Wheel 24 | . 24 Device 1 | . 1 Storage 25 | . 25 Energy Gun 13 | . 13 Energy Cannon 11 | . 11 Peak Build Rating 10 | 6 10 Average Rating 6 | 4 6 On Entrance 3 | . 6 Naked Turns . | . . Heaviest Build 19 | 13 19 Greatest Support 20 | 20 20 Greatest Overweight (x) 1 | . 1 Average Overweight (x) . | . . Largest Inventory Capacity 8 | 8 8 Average Capacity 7 | 6 8 Most Carried 8 | . 8 Average Carried 4 | . 5 Final Capacity 8 | 8 8 Final Carried 7 | . 7 Class Distribution -------------------- 100% | Mutant Dominant Class ---------------- Mutant | -10/Materials Resources | -11 -10 ----------- Run | Yrd Mat Matter Collected 493 | 206 287 Remotely . | . . Salvage Created 410 | . 410 Parts 40 | . 40 Haulers Intercepted . | . . Recyclers Shooed . | . . Parts Field Recycled . | . . Retrieved Matter . | . . Parts Self-Destructed . | . . Prevented . | . . Kills | -11 -10 ------- Run | Yrd Mat Combat Hostiles Destroyed 14 | . 14 Guns 6 | . 6 Cannons 8 | . 8 Classes Destroyed 5 | . 5 Builder 3 | . 3 Operator 1 | . 1 Watcher 1 | . 1 Swarmer 9 | . 9 Grunt 5 | . 5 Best Kill Streak 5 | . 5 Combat Bots Only 5 | . 5 Max Kills in Single Turn 1 | . 1 Gunslinging . | . . Exploded . | . . Melee . | . . Uniques/NPCs Destroyed . | . . Combat | -11 -10 -------- Run | Yrd Mat Hostile Shots Fired 136 | . 136 Missed 39 | . 39 Damage Taken 829 | . 829 Core 251 | . 251 Absorbed by Shields . | . . Core Remaining (%) 100 | 100 . Volleys Fired 57 | . 57 Largest 2 | . 2 Hottest 110 | . 110 Shots Fired 93 | . 93 Gun 49 | . 49 Cannon 44 | . 44 Launcher . | . . Special . | . . Kinetic . | . . Thermal 93 | . 93 Explosive . | . . Electromagnetic . | . . Robot Hit Streak 8 | . 8 Robot Miss Streak 9 | . 9 Penetration Max . | . . Secondary Targets . | . . Shots Hit Robots 45 | . 45 Core Hits 23 | . 23 Critical Kills . | . . Critical Parts Destroyed . | . . Critical Strikes 2 | . 2 Burn 2 | . 2 Melee Attacks . | . . Impact . | . . Slashing . | . . Piercing . | . . Sneak Attacks . | . . Combat Hostiles . | . . Follow-up Attacks . | . . Damage Inflicted 727 | . 727 Guns 329 | . 329 Cannons 383 | . 383 Explosions . | . . Melee . | . . Ramming 15 | . 15 Kinetic . | . . Thermal 712 | . 712 Explosive . | . . Electromagnetic . | . . Impact . | . . Slashing . | . . Piercing . | . . Highest Corruption 3 | . 3 Average Corruption 3 | . 3 Corruption Purged . | . . Corruption Blocked . | . . Effects 7 | . 7 Message Errors 1 | . 1 Matter Fused 1 | . 1 Heat Flow Errors 2 | . 2 Data Loss (minor) 2 | . 2 Data Loss (major) 1 | . 1 Overload Shots . | . . Overflow Damage . | . . Projectiles . | . . Explosions . | . . Melee . | . . Knockbacks 1 | . 1 Impact 1 | . 1 Kinetic . | . . Secondary . | . . Self-Inflicted Damage 7 | . 7 Shots . | . . Rammed 1 | . 1 Targets Rammed 1 | . 1 Kicked . | . . Crushed . | . . Highest Temperature 479 | . 479 Average Temperature 183 | . 183 Received Heat Transfer 60 | . 60 Effects 8 | . 8 Shutdowns 1 | . 1 Interference 3 | . 3 Matter Decay 3 | . 3 Damage (minor) 1 | . 1 Siege Activations . | . . Robots Corrupted . | . . Combat Hostiles . | . . Parts Fried . | . . Impact Corruptions . | . . Robots Melted . | . . Combat Hostiles . | . . Parts Melted 6 | . 6 Heat Transferred 1783 | . 1783 Parts Sabotaged . | . . Parts Stolen . | . . Parts Stripped . | . . Power Chain Reactions . | . . Alert | -11 -10 ------- Run | Yrd Mat Peak Influence 272 | . 272 Initial . | . . Average 106 | . 117 Maximum Alert Level 1 | . 1 Low Security (%) 88 | 100 87 Level 1 11 | . 12 Level 2 . | . . Level 3 . | . . Level 4 . | . . Level 5 . | . . High Security . | . . Max Security . | . . Squads Dispatched 3 | . 3 Investigation 1 | . 1 Extermination . | . . Reinforcement 2 | . 2 Assault . | . . Garrison . | . . Intercept . | . . Searches Triggered . | . . Construction Impeded . | . . Haulers Reinforced . | . . Active Scanning Responses . | . . Cargo Convoy Interrupts . | . . Stealth | -11 -10 --------- Run | Yrd Mat Distress Signals . | . . Communications Jammed . | . . Distress Signals . | . . Times Spotted 23 | . 23 Peak Tracking Total 6 | . 6 Tactical Retreats . | . . Traps | -11 -10 ------- Run | Yrd Mat Traps Triggered . | . . Indirectly . | . . Trap Hack Attempts . | . . Triggered . | . . Disarmed . | . . Reprogrammed . | . . Reused . | . . Traps Extracted . | . . Installed . | . . Triggered . | . . Machines | -11 -10 ---------- Run | Yrd Mat Machines Disabled . | . . Max in Single Turn . | . . Machines Repaired . | . . Machines Dismantled . | . . Machines Sabotaged . | . . Overloaded Fab Kills . | . . Hacking | -11 -10 --------- Run | Yrd Mat Machines Accessed 3 | . 3 Terminals 3 | . 3 Fabricators . | . . Repair Stations . | . . Recycling Units . | . . Scanalyzers . | . . Garrison Access . | . . Total Hacks 8 | . 8 Successful 2 | . 2 Failed 6 | . 6 Catastrophic 3 | . 3 Database Lockouts . | . . Manual . | . . Terminals 8 | . 8 Fabricators . | . . Repair Stations . | . . Recycling Units . | . . Scanalyzers . | . . Garrison Access . | . . Terminal Hacks 2 | . 2 Record 1 | . 1 Robot Analysis 1 | . 1 Fabricator Hacks . | . . Repair Station Hacks . | . . Recycling Unit Hacks . | . . Scanalyzer . | . . Garrison Access Hacks . | . . Unauthorized Hacks . | . . Terminals . | . . Fabricators . | . . Repair Stations . | . . Recycling Units . | . . Scanalyzers . | . . Garrison Access . | . . Data Cores Recovered . | . . Used . | . . Hacking Detections 3 | . 3 Full Trace Events 3 | . 3 Feedback Events . | . . Feedback Blocked . | . . Robot Schematics Acquired . | . . Robots Built . | . . Authchips . | . . Time . | . . Total Robot Build Rating . | . . Part Schematics Acquired . | . . Parts Built . | . . Authchips . | . . Time . | . . Total Part Build Rating . | . . Parts Repaired . | . . Time . | . . Parts Recycled . | . . Recycled Matter . | . . Retrieved Matter . | . . Retrieved Components . | . . Parts Scanalyzed . | . . Part Schematics Acquired . | . . Parts Damaged . | . . Bothacking | -11 -10 ------------ Run | Yrd Mat Used RIF Installer . | . . Robots Hacked . | . . Non-combat . | . . Combat . | . . Robot Hacks Applied . | . . Relay Couplers Released . | . . Fabnet Peak Effective % . | . . Robots Rewired . | . . Allies Hacked . | . . Hacks Repelled . | . . Allies | -11 -10 -------- Run | Yrd Mat Total Allies . | . . Largest Group . | . . Highest-Rated Group . | . . Highest-Rated Ally . | . . Total Orders . | . . Ally Attacks . | . . Total Damage . | . . Kills . | . . Allies Corrupted . | . . Allies Melted . | . . Intel | -11 -10 ------- Run | Yrd Mat Robot Analysis Total 1 | . 1 Derelict Logs Recovered . | . . Drone Launches . | . . Drone Recoveries . | . . Exploration | -11 -10 ------------- Run | Yrd Mat Turns Passed 652 | 62 590 Spaces Moved 493 | 59 434 Core 11 | 9 2 Treads . | . . Legs . | . . Wheels 482 | 50 432 Hover . | . . Flight . | . . Fastest Speed 50 | 50 80 Average Speed 79 | 75 80 Slowest Speed 100 | 80 100 Overloaded Moves . | . . Propulsion Burnouts . | . . Robots Hopped . | . . Cave-ins Triggered . | . . Exploration Rate (%) 33 | 4 62 Regions Visited 1 Branch Regions . Pre-discovered Areas . | . . Known Exits Taken . | . . Unknown Exits Taken 1 | 1 . Scrap Searched . | . . Spaces Dug . | . . Terrain Destroyed . | . . Melee . | . . Projectile . | . . AOE . | . . Terrain Rammed . | . . Walls Destroyed . | . . Machines Disabled . | . . Actions | -11 -10 --------- Run | Yrd Mat Total 658 | 73 585 Wait 59 | 9 50 Move 492 | 58 434 Hop . | . . Pick Up 16 | . 16 Fast Attach 11 | 6 5 Attach 7 | . 7 Detach 5 | . 5 Swap 3 | . 3 Drop 7 | . 7 Fire 57 | . 57 Melee . | . . Ram 1 | . 1 Kick . | . . Crush . | . . Escape Stasis . | . . Rewire . | . . Trap . | . . Miscellaneous . | . . Route ------- -11/Scrapyard -10/Materials (discovered 2 exits: [*Mat] / [*Min]) History --------- Turn | Location | Event 5 | -11/Scrapyard | Discovered new exit (range 16) 63 | -11/Scrapyard | Entered Materials 247 | -10/Materials | Core integrity fell below 50% 266 | -10/Materials | Lost 3 parts (2n1w) 306 | -10/Materials | Build established: Mutant 397 | -10/Materials | Core integrity fell below 20% 595 | -10/Materials | Discovered new exit (range 15) 625 | -10/Materials | Discovered new exit (range 13) 653 | -10/Materials | Destroyed by G-34 Mercenary with Small Laser Last Messages --------------- 00564_ Dropped Ion Engine. 00564_ Acquired Cld. Ion Engine. 00565_ Dropped Lgt. Ion Engine. 00567_ Acquired Faulty Cld. Ion Engine. 00568_ Dropped Faulty Cld. Ion Engine. 00569_ Acquired Cld. Ion Engine. 00595_ EXIT=FOUND 00596_ T-07 Excavator is excavating. 00600_ System corrupted: Matter fused (-8). 00600_ T-07 Excavator is excavating. 00602_ Acquired 28 matter. 00604_ T-07 Excavator is excavating. 00611_ O-16 Technician: "IFF HANDSHAKE FAILED. SECURING TERMINAL." 00614_ O-16 Technician uses terminal to summon reinforcements. 00614_ ALERT: Hostiles spotted, dispatching reinforcements to Terminal M001. 00614_ O-16 Technician locks terminal. 00625_ EXIT=FOUND Map ----- +----------------------------------------------------+ | | | | | ????????????????????????????????????? | | ????????????????????????????????????? | | ????????????????????????????????????? | | ????????????????????????????????????? | | ????????????????????????????????????? | | ????????????????????????????????????? | | ??????????????????????#####?????????? | | ?????????????????????##"""##????????? | | ????????????????????##"|||"##???????? | | ????????????????????#"" ""#???????? | | #####???????????????# #???????? | | # #???????????????# < #???????? | | # < #???????????????# #???????? | | # #???????????????# #???????? | | +????????????????# #????????? | | # #????????????????## ####??????? | | # ################### !##?????? | | # * g !#?????? | | # !%% g^^ !#?????? | | # """ ^ o"" !#?????? | | # ######### """^ T" !#?????? | | # #???????# """ "" !##?????? | | # #???????+ """ ####??????? | | # #???????# @#?????????? | | # ##??????# #?????????? | | #??????## #?????????? | | #???????# ## #?????????? | | #???????# ## #?????????? | | #???????# ##[[!![[#?????????? | | #???????# ##[[!![[#?????????? | | # ###???? #########?????????? | | # #??? #?????????????????? | | #**==//#??# #?????????????????? | | #* ==//#??# #?????????????????? | | ########??# #?????????????????? | | ??????????# ##### #?????????????????? | | ??????????# ????? #?????????????????? | | ????????????????? #?????????????????? | | ????????????????? ??????????????????? | | ????????????????????????????????????? | | ????????????????????????????????????? | | ???????????????????????????????????? | | ???????????????????????????????????? | | ???????????????????????????????????? | | ????????????????????????????????????? | | ????????????????????????????????????? | | ????????????????????????????????????? | | ????????????????????????????????????? | +----------------------------------------------------+ Best States ------------- Heat Dissipation 35 Energy Generation 14 Energy Capacity 430 Matter Stores 300 Matter Capacity 300 Sight Range 16 Terrain Scan Density 10 Evasion (%) 44 Item Schematics ----------------- None Robot Schematics ------------------ None Fabricated ------------ Nothing Alien Tech Used ----------------- None Achievements -------------- None Challenges ------------ None Game ------ Seed BehemothHypervelocityBrace Manual? 0 Play Time 00:23:23 Cumulative 9.4 hours Start 2025.03.06 @ 06:46:47 End 2025.03.06 @ 18:43:04 Sessions 3 Manual Loads 0 Difficulty Rogue Special Mode None Game No. 4 Rogue 4 Adventurer 0 Explorer 0 Win Type - Total 0 Types 0/0/0/0/0/0/0/0/0 Lore% 4 Gallery% 7 Achievement% 10 Wizard Run 0 Options --------- Layout 1 ASCII 0 Keyboard 1 Movement Numpad Keybinds 0 Fullscreen 1 Font 24/Cog Map View 50x35 Zoom Use 0% Tactical HUD 1 Map Filters NONE Filters NONE Steam 1 RUN: 7dfccab8-e6ec-4205-8eaf-984503f07fb3